fUST/lending_fUST_20240416
["ID","MTS","AMOUNT","RATE_DAILY","PERIOD"]
[322680769,1713213039218,-1000.0,0.00027397,2]
[322680770,1713213039228,-800.48349952,0.000275,17]
[322680771,1713213039237,-158.76847546,0.00027811,2]
[322680772,1713213039246,-1318.01367935,0.00027998,2]
[322680773,1713213039255,-500.0,0.00027999,2]
[322680774,1713213039264,-500.0,0.00027999,2]
[322680775,1713213039273,-612.26005722,0.00027999,2]
[322680776,1713213039282,-500.0,0.00027999,2]
[322680777,1713213039291,-500.0,0.00027999,2]
[322680778,1713213039300,-500.0,0.00027999,2]
[322680779,1713213039309,-604.23028881,0.00027999,2]
[322680780,1713213039319,-42740.90004681,0.00028,2]
[322680787,1713213040471,-15112.65477506,0.00028,2]
[322680788,1713213042458,-2026.55554891,0.00022471,2]
[322680789,1713213042468,-64274.37749833,0.00028,2]
[322680790,1713213042479,-76363.10801533,0.00028,2]
[322680791,1713213042488,-166.666666,0.00028038,2]
[322680792,1713213042497,-1152.0,0.00028113,2]
[322680793,1713213042506,-711.0133225,0.00028442,2]
[322680794,1713213042515,-1902.35260395,0.0002867,2]
[322680795,1713213042524,-158.76847546,0.0002867,2]
[322680796,1713213042533,-166.666666,0.00028679,2]
[322680797,1713213042542,-520.61218234,0.00028739,2]
[322680798,1713213042551,-788.15969566,0.00028768,2]
[322680799,1713213042561,-244.19089589,0.00028768,2]
[322680800,1713213042570,-754.76178305,0.00028768,2]
[322680801,1713213042579,-281.21860613,0.00028768,2]
[322680802,1713213042588,-788.2521399,0.00028768,2]
[322680803,1713213042597,-175.35435654,0.00028768,2]
[322680804,1713213042606,-227.95896244,0.00028768,2]
[322680805,1713213042615,-216.43597525,0.00028768,2]
[322680806,1713213042623,-2536.11793357,0.00028768,2]
[322680807,1713213042632,-214.09821548,0.00028768,2]
[322680808,1713213042642,-1211.20926515,0.00028768,2]
[322680809,1713213042651,-263.03739926,0.00028768,2]
[322680810,1713213042660,-500.0,0.00028769,2]
[322680811,1713213042668,-388.76073358,0.00028769,2]
[322680812,1713213042677,-640.42977247,0.00028769,2]
[322680813,1713213042686,-500.0,0.00028769,2]
[322680814,1713213042695,-247.2126059,0.00028769,2]
[322680815,1713213042704,-500.0,0.00028769,2]
[322680816,1713213042713,-279.94166116,0.00028769,2]
[322680817,1713213042722,-603.41023243,0.00028769,2]
[322680818,1713213042731,-500.0,0.00028769,2]
[322680819,1713213042740,-500.0,0.00028769,2]
[322680820,1713213042749,-500.0,0.00028769,2]
[322680821,1713213042758,-332.98613364,0.00028769,2]
[322680822,1713213042766,-500.0,0.00028769,2]
[322680823,1713213042775,-500.0,0.00028769,2]
[322680824,1713213042784,-180.98214575,0.00028769,2]
[322680825,1713213042793,-213.2971147,0.00028769,2]
[322680826,1713213042802,-68772.26813444,0.0002877,5]
[322680943,1713213043786,-1001.20482063,0.0002877,5]
[322680991,1713213044063,-0.0287102,0.0002877,5]
[322681112,1713213046697,-2026.55554891,0.00025042,2]
[322681113,1713213046706,-1933.58973003,0.00027999,2]
[322681114,1713213046715,-7774.65646913,0.0002877,5]
[322681160,1713213329242,10000.0,0.00023,10]
[322681166,1713213640743,264.95638975,0.00023758,7]
[322683615,1713214154147,-6557.8091,0.00022618,2]
[322683620,1713214163170,-2965.8683779,0.00022618,2]
[322683621,1713214163191,-241.07910305,0.00022717,2]
[322683622,1713214163210,-2559.53479146,0.00022717,2]
[322683623,1713214163231,-154.79876161,0.00022717,2]
[322683624,1713214163252,-9558.22389449,0.00022718,2]
[322683625,1713214163272,-175.05226836,0.00022718,2]
[322683626,1713214163293,-2007.62821039,0.00022719,2]
[322683627,1713214163314,-688.1990758,0.00022719,2]
[322683628,1713214163334,-157.4992408,0.00022719,2]
[322683629,1713214163355,-300.0,0.00022719,2]
[322683630,1713214163376,-300.0,0.00022719,2]
[322683631,1713214163396,-312.17239167,0.0002272,2]
[322683632,1713214163416,-158.76974363,0.0002272,2]
[322683633,1713214163435,-326.84815688,0.0002272,2]
[322683634,1713214163455,-953.73793423,0.00022721,2]
[322683635,1713214163476,-525.49067281,0.00022721,2]
[322683636,1713214163498,-59063.66666477,0.00022721,2]
[322683637,1713214163519,-154.79876161,0.00022722,2]
[322683638,1713214163542,-22777.83227765,0.00022722,2]
[322683639,1713214163565,-2583.74745148,0.00022722,2]
[322683640,1713214163586,-4703.79139108,0.00022754,2]
[322683641,1713214169263,-1266.59721813,0.00022621,2]
[322683642,1713214169282,-20196.20860892,0.00022754,2]
[322683643,1713214169301,-243.11397292,0.00023,2]
[322683644,1713214169320,-203.82355901,0.0002376,2]
[322683767,1713214237892,-1558.15950152,0.00020654,2]
[322683768,1713214237901,-175.05226836,0.00023759,2]
[322683769,1713214237911,-155.19964545,0.00023759,2]
[322683770,1713214237920,-173.57499817,0.00023759,2]
[322683771,1713214237930,-441.25991767,0.00023759,2]
[322683772,1713214237941,-246.93915813,0.00023759,2]
[322683773,1713214237951,-420.7272769,0.0002376,2]
[322683775,1713214237960,-172.63028827,0.000247,2]
[322683778,1713214237969,-1266.59721806,0.00024804,2]
[322683780,1713214237978,-265.48399782,0.0002486,7]
[322683783,1713214237987,-620.2275418,0.00024948,2]
[322683785,1713214237996,-156.98200501,0.00025,2]
[322683788,1713214238005,-170.38543201,0.00025,2]
[322683790,1713214238015,-1558.15950152,0.00025654,2]
[322683792,1713214238024,-620.01137709,0.00026195,2]
[322683795,1713214238033,-300.0,0.00026669,2]
[322683797,1713214238042,-300.0,0.00026669,2]
[322683798,1713214238053,-243.11397292,0.00026985,2]
[322683799,1713214238062,-157.4992408,0.00026985,2]
[322683801,1713214238071,-1266.59721806,0.00026986,3]
[322683802,1713214238080,-154.84515485,0.00027,2]
[322683804,1713214238089,-164.744879,0.00027397,2]
[322683806,1713214238098,-1000.0,0.00027397,2]
[322683808,1713214238108,-467.046225,0.00027397,2]
[322683810,1713214238117,-166.666666,0.00027397,2]
[322683812,1713214238126,-154.79876161,0.00027501,2]
[322683814,1713214238135,-620.00056885,0.00027505,2]
[322683816,1713214238144,-11903.29718513,0.00027997,2]
[322683818,1713214238155,-10874.53509252,0.00027997,2]
[322683820,1713214238164,-511.12360975,0.00027998,17]
[322683822,1713214238173,-155.41939666,0.00027998,2]
[322683824,1713214238182,-166.666666,0.00028038,2]
[322683826,1713214238191,-166.666666,0.00028679,2]
[322683828,1713214238200,-783.63141595,0.00028736,2]
[322683830,1713214238209,-154.79876161,0.00028764,2]
[322683832,1713214238218,-216.09314923,0.00028765,2]
[322683834,1713214238227,-1000.0,0.00028765,2]
[322683836,1713214238236,-1138.5449956,0.00028768,2]
[322683838,1713214238245,-3967.55538866,0.00028768,2]
[322683840,1713214238255,-284.44183286,0.00028768,2]
[322683842,1713214238264,-356.55926804,0.00028768,2]
[322683844,1713214238273,-325.62785758,0.00028768,2]
[322683846,1713214238282,-158.76974363,0.00028768,2]
[322683848,1713214238291,-953.73793423,0.00028768,2]
[322683850,1713214238301,-156.38945206,0.00028768,2]
[322683851,1713214238312,-2674.64824014,0.00028768,2]
[322683854,1713214238323,-6883.57565435,0.00028768,2]
[322683856,1713214238332,-312.17239167,0.00028768,2]
[322683858,1713214238342,-1434.37485709,0.00028769,2]
[322683860,1713214238351,-528.42286231,0.00028769,2]
[322683862,1713214238359,-3428.45423458,0.0002877,2]
[322684031,1713214240337,-1431.58436728,0.00028767,2]
[322684033,1713214240351,-3699.76211743,0.00028767,2]
[322684261,1713214242985,-1439.99958419,0.00028767,2]
[322684262,1713214242997,-1199.99732203,0.00028767,2]
[322684263,1713214243043,-12634.6,0.00028767,2]
[322684264,1713214243054,-302.61772616,0.00028767,2]
[322684265,1713214243066,-10241.91312644,0.00028767,2]
[322684266,1713214243077,-340.34803852,0.00028767,2]
[322684267,1713214243088,-365.9201461,0.00028767,2]
[322684268,1713214243099,-23666.7352052,0.00028767,2]
[322684272,1713214243174,-3740.18903142,0.00028767,2]
[322684274,1713214243183,-181048.93930846,0.0002877,2]
[322684276,1713214243192,-755.09359961,0.0002877,2]
[322684278,1713214243201,-74681.2074685,0.0002877,14]
[322684280,1713214243211,-2302.29294917,0.0002877,4]
[322684282,1713214243220,-11325.54188872,0.0002877,2]
[322684283,1713214243228,-506.0,0.00028787,2]
[322684285,1713214243238,-420.0,0.00028842,2]
[322684287,1713214243247,-620.00002844,0.0002888,2]
[322684289,1713214243260,-841.92417868,0.00029,2]
[322684291,1713214243275,-10549.08217762,0.00029,2]
[322684293,1713214243284,-1266.59721806,0.00029169,4]
[322684295,1713214243293,-153.0,0.00029229,2]
[322684297,1713214243302,-153.0,0.00029229,2]
[322684299,1713214243313,-306.0,0.00029229,2]
[322684301,1713214243321,-153.0,0.00029229,2]
[322684303,1713214243331,-153.0,0.00029229,2]
[322684305,1713214243339,-153.0,0.00029229,2]
[322684307,1713214243348,-306.0,0.00029229,2]
[322684308,1713214243357,-166.666666,0.00029321,2]
[322684309,1713214243366,-420.0,0.00029336,2]
[322684310,1713214243375,-1000.0,0.00029715,2]
[322684311,1713214243384,-1000.0,0.00029733,2]
[322684312,1713214243393,-1000.0,0.00029739,2]
[322684313,1713214243403,-1000.0,0.00029764,2]
[322684314,1713214243412,-13705.42988764,0.0002978,10]
[322684315,1713214243421,-1000.0,0.00029789,2]
[322684316,1713214243430,-1000.0,0.00029793,2]
[322684317,1713214243439,-466.75192691,0.00029859,2]
[322684318,1713214243449,-150.0,0.00029863,2]
[322684319,1713214243460,-150.0,0.00029879,2]
[322684320,1713214243469,-1000.0,0.00029886,2]
[322684321,1713214243478,-1712.1173436,0.00029887,2]
[322684322,1713214243487,-1000.0,0.00029897,2]
[322684323,1713214243496,-202.93878947,0.00029898,2]
[322684324,1713214243506,-301.21875033,0.00029898,2]
[322684325,1713214243515,-300.65867133,0.00029898,2]
[322684326,1713214243524,-156.20487262,0.00029898,2]
[322684327,1713214243533,-204.18600103,0.00029899,3]
[322684328,1713214243543,-258.60438532,0.00029899,2]
[322684329,1713214243555,-500.0,0.00029899,2]
[322684330,1713214243565,-274.46990249,0.00029899,2]
[322684331,1713214243574,-320.23397396,0.00029899,2]
[322684332,1713214243583,-334.26071192,0.00029899,2]
[322684333,1713214243593,-499.89584009,0.00029899,2]
[322684334,1713214243603,-158.55135675,0.000299,2]
[322684335,1713214243612,-284.86615324,0.000299,2]
[322684336,1713214243622,-254.60217314,0.000299,2]
[322684337,1713214243632,-155.72941413,0.000299,2]
[322684338,1713214243642,-156.8169168,0.000299,2]
[322684339,1713214243651,-222.56968711,0.000299,2]
[322684340,1713214243660,-457.32318665,0.000299,2]
[322684341,1713214243670,-156.1455018,0.000299,2]
[322684342,1713214243679,-14527.79533547,0.000299,2]
[322684343,1713214243689,-155.87710472,0.000299,2]
[322684345,1713214243699,-1000.0,0.0002991,2]
[322684347,1713214243708,-1000.0,0.00029922,2]
[322684349,1713214243718,-4476.80847042,0.00029936,7]
[322684350,1713214243727,-1000.0,0.0002994,2]
[322684352,1713214243736,-1000.0,0.00029942,2]
[322684354,1713214243746,-166.666666,0.00029962,2]
[322684356,1713214243755,-234.9244851,0.0002997,2]
[322684357,1713214243764,-23839.32857401,0.00029987,2]
[322684358,1713214243773,-150.0,0.00029999,2]
[322684360,1713214243782,-150.62201785,0.00029999,2]
[322684361,1713214243791,-282913.68191927,0.0003,5]
[322684363,1713214243801,-277.49835565,0.0003,2]
[322684365,1713214243812,-154.78330338,0.0003,4]
[322684366,1713214243821,-154.78330338,0.0003,4]
[322684367,1713214243837,-154.78330338,0.0003,2]
[322684368,1713214243847,-154.78330338,0.0003,4]
[322684369,1713214243856,-168.59441524,0.0003,2]
[322684370,1713214243866,-66923.89833227,0.0003,5]
[322684371,1713214243875,-378.76171924,0.0003,10]
[322684372,1713214243884,-7657.68290824,0.0003,10]
[322684373,1713214243893,-38005.28363771,0.0003,7]
[322684374,1713214243903,-199.999999,0.0003,2]
[322684375,1713214243912,-86092.47521665,0.0003,2]
[322684376,1713214243951,-703.14464824,0.0003,2]
[322684412,1713214598521,6530.02497208,0.00019011,2]
[322684413,1713214598547,3469.97502792,0.00019011,2]
[322684414,1713214646040,284.86615324,0.00019011,2]
[322684415,1713214662060,284.86615324,0.00019011,2]
[322684416,1713214682044,284.86615324,0.00019011,2]
[322684417,1713214700049,214.70278329,0.00019011,2]
[322684420,1713214906855,-312.17239167,0.00022598,2]
[322684421,1713214906880,-844.7745796,0.00022599,2]
[322684422,1713214906902,-202.24196808,0.0002359,2]
[322684423,1713214906926,-161.77699218,0.00023592,2]
[322684424,1713214906948,-563.61476546,0.00023593,2]
[322684425,1713214906971,-640.72014459,0.00023594,2]
[322684426,1713214906994,-154.79876161,0.00023595,2]
[322684427,1713214907017,-158.76974363,0.00023596,2]
[322684428,1713214907040,-243.11397292,0.00023596,2]
[322684429,1713214907062,-2619.93201651,0.00023598,2]
[322684430,1713214907085,-300.0,0.00023599,2]
[322684431,1713214907109,-9558.22389449,0.000236,2]
[322684432,1713214908580,163.91782719,0.00022598,2]
[322684433,1713214920655,300.0,0.000236,2]
[322684434,1713214922491,300.0,0.000236,2]
[322684435,1713214969345,2124.60141988,0.000236,2]
[322684436,1713214971917,203.83136061,0.000236,2]
[322684439,1713214980729,300.0,0.000236,2]
[322684440,1713214981942,300.0,0.000236,2]
[322684441,1713215000097,547.51016158,0.000236,2]
[322684442,1713215027404,-953.73793423,0.00023598,2]
[322684443,1713215027427,-953.73793423,0.00023598,2]
[322684444,1713215027451,-18092.52413154,0.00023599,2]
[322684446,1713215251169,-158.76974363,0.00023494,2]
[322684447,1713215251189,-161.77699218,0.00023494,2]
[322684448,1713215251209,-6406.19830463,0.00023495,2]
[322684450,1713215349229,-22777.83227765,0.00022842,2]
[322684451,1713215349250,-300.0,0.00022842,2]
[322684452,1713215349270,-300.0,0.00022842,2]
[322684453,1713215349289,-163.91782719,0.00022843,2]
[322684454,1713215349309,-9558.22389449,0.00022843,2]
[322684455,1713215349330,-24900.0,0.00022844,2]
[322684456,1713215349350,-250.0,0.00022873,2]
[322684457,1713215349372,-151.61079537,0.00023495,2]
[322684458,1713215349393,-8000.0,0.00023592,2]
[322684459,1713215349417,-5443.29995952,0.00024693,2]
[322684460,1713215349438,-882.33479028,0.00024694,2]
[322684461,1713215349458,-600.76737,0.00024706,2]
[322684462,1713215349477,-420.0,0.000248,2]
[322684463,1713215349497,-168.940882,0.00024917,2]
[322684464,1713215349522,-156.98200501,0.00025,2]
[322684465,1713215349541,-420.0,0.00025126,2]
[322684466,1713215349561,-170.617272,0.00025277,2]
[322684467,1713215349585,953.73793423,0.00022841,2]
[322684468,1713215362190,156.98200501,0.00025,2]
[322684469,1713215380651,156.98200501,0.00025,2]
[322684470,1713215396092,156.98200501,0.00025,2]
[322684471,1713215412095,156.98200501,0.00025,2]
[322684472,1713215419065,519.38650051,0.000215,2]
[322684625,1713215438203,-158.76974363,0.00026499,2]
[322684626,1713215438213,-519.38650051,0.000265,2]
[322684627,1713215438222,-302.6792416,0.00026924,2]
[322684628,1713215438251,156.98200501,0.00025,2]
[322684854,1713215440028,-651.05869263,0.00026924,2]
[322684857,1713215440039,-302.0,0.00027,2]
[322684859,1713215440048,-8000.0,0.00027396,2]
[322684861,1713215440058,-403.952667,0.00027397,2]
[322684863,1713215440067,-187.721891,0.00027397,2]
[322684864,1713215440075,-166.666666,0.00027397,2]
[322684865,1713215440084,-1000.0,0.00027397,2]
[322684866,1713215440093,-302.0,0.00027671,2]
[322684867,1713215440102,-166.666666,0.00028038,2]
[322684868,1713215440111,-331.74664217,0.00028307,2]
[322684869,1713215440119,-300.0,0.00028354,2]
[322684870,1713215440128,-300.0,0.00028354,2]
[322684871,1713215440137,-657.78301008,0.00028355,2]
[322684872,1713215440146,-608.9706492,0.00028355,2]
[322684873,1713215440155,-308.12316072,0.00028355,2]
[322684874,1713215440163,-537.61995253,0.00028355,2]
[322684875,1713215440173,-376.89055884,0.00028355,2]
[322684876,1713215440182,-601.81614276,0.00028355,2]
[322684877,1713215440191,-257.62252103,0.00028355,2]
[322684878,1713215440200,-1212.72837645,0.00028355,2]
[322684879,1713215440213,-372.12463709,0.00028355,2]
[322684880,1713215440223,-802.45389962,0.00028355,17]
[322684881,1713215440232,-856.95690011,0.00028355,2]
[322684882,1713215440241,-187.79272959,0.00028355,2]
[322684883,1713215440250,-161.77699218,0.00028355,2]
[322684884,1713215440259,-163.80536521,0.00028355,2]
[322684885,1713215440268,-215.57102919,0.00028356,2]
[322684886,1713215440278,-12709.51544416,0.00028356,2]
[322684887,1713215440287,-6380.61439384,0.00028356,2]
[322684888,1713215440296,-22506.48836398,0.00028357,2]
[322685089,1713215454097,187.63319789,0.00025,2]
[322685107,1713216439164,-317.3794662,0.00025165,2]
[322685108,1713216439189,-8000.0,0.00025412,2]
[322685109,1713216439211,-1443.300206,0.00025413,2]
[322685110,1713216439234,-300.0,0.00025845,2]
[322685111,1713216439254,-300.0,0.00025845,2]
[322685112,1713216439275,-2754.22212684,0.00025846,2]
[322685114,1713216624492,1320.01810848,0.00023746,2]
[322685157,1713216638244,-170.617272,0.00024891,2]
[322685158,1713216638254,-232.09863384,0.00025126,2]
[322685159,1713216638265,-489.55146916,0.00025126,2]
[322685160,1713216638274,-300.0,0.00025674,2]
[322685161,1713216638284,-300.0,0.00025675,2]
[322685162,1713216638294,-8000.0,0.00025675,2]
[322685163,1713216638305,-910.44853084,0.00025676,2]
[322685165,1713216638318,-628.25855313,0.00025676,2]
[322685168,1713216638563,-23361.29291603,0.00025676,2]
[322685169,1713216638572,-2302.29294917,0.00025846,4]
[322685170,1713216638581,-172.63028826,0.000264,2]
[322685172,1713216638590,-172.63028826,0.000264,2]
[322685174,1713216638599,-43111.9799401,0.00026725,2]
[322685175,1713216638608,-785.18771344,0.00026725,2]
[322685176,1713216638617,-226.0,0.00027,2]
[322685177,1713216638626,-163.752107,0.00027211,2]
[322685178,1713216638636,-1000.0,0.00027397,2]
[322685179,1713216638645,-160.569442,0.00027397,2]
[322685180,1713216638653,-9145.7680547,0.00027397,2]
[322685181,1713216638662,-166.666666,0.00027397,2]
[322685182,1713216638671,-153.0,0.00027585,2]
[322685183,1713216638680,-153.0,0.00027585,2]
[322685184,1713216638689,-226.0,0.00027671,2]
[322685185,1713216638698,-420.0,0.00027796,2]
[322685186,1713216638707,-166.666666,0.00028038,2]
[322685187,1713216638715,-420.0,0.00028242,2]
[322685188,1713216638724,-1033.52606186,0.00028307,2]
[322685189,1713216638733,-800.48349952,0.00028355,17]
[322685190,1713216638742,-36557.17830079,0.00028357,2]
[322685191,1713216638751,-223.75485184,0.00028496,2]
[322685192,1713216638760,-153.0,0.00028556,2]
[322685193,1713216638769,-166.666666,0.00028679,2]
[322685194,1713216638778,-1033.52606183,0.00028739,2]
[322685195,1713216638787,-1320.01810848,0.00028746,2]
[322685196,1713216638796,-226.0,0.00028767,2]
[322685197,1713216638804,-3637.47569067,0.0002877,2]
[322685198,1713216638813,-620.00322753,0.00028808,2]
[322685199,1713216638822,-1000.0,0.00028969,2]
[322685200,1713216638830,-1000.0,0.00028994,2]
[322685201,1713216638839,-1033.52606183,0.00029172,2]
[322685202,1713216638848,-1000.0,0.00029176,2]
[322685203,1713216638856,-470.72269089,0.00029223,2]
[322685204,1713216638865,-187.23975877,0.00029223,2]
[322685205,1713216638874,-279.02852297,0.00029224,2]
[322685206,1713216638885,-216.09314923,0.00029224,2]
[322685207,1713216638895,-247.28140507,0.00029228,2]
[322685208,1713216638904,-235.19498628,0.00029228,2]
[322685209,1713216638913,-166.666666,0.00029321,2]
[322685210,1713216638922,-1000.0,0.00029354,2]
[322685211,1713216638931,-1000.0,0.00029397,2]
[322685212,1713216638940,-1033.52606183,0.00029604,2]
[322685213,1713216638949,-157.65285667,0.00029699,2]
[322685214,1713216638958,-153.0,0.00029862,2]
[322685215,1713216638967,-153.0,0.00029862,2]
[322685216,1713216638975,-153.0,0.00029862,2]
[322685217,1713216638984,-153.0,0.00029862,2]
[322685218,1713216638994,-153.0,0.00029862,2]
[322685219,1713216639002,-153.0,0.00029862,2]
[322685220,1713216639144,-153.0,0.00029862,2]
[322685221,1713216639154,-153.0,0.00029862,2]
[322685222,1713216639163,-153.0,0.00029862,2]
[322685223,1713216639172,-153.0,0.00029862,2]
[322685224,1713216639181,-153.0,0.00029862,2]
[322685225,1713216639190,-153.0,0.00029862,2]
[322685226,1713216639199,-153.0,0.00029862,2]
[322685227,1713216639209,-153.0,0.00029862,2]
[322685228,1713216639221,-153.0,0.00029862,2]
[322685229,1713216639231,-153.0,0.00029862,2]
[322685230,1713216639240,-153.0,0.00029862,2]
[322685231,1713216639249,-153.0,0.00029862,2]
[322685232,1713216639260,-153.0,0.00029862,2]
[322685233,1713216639269,-153.0,0.00029862,2]
[322685234,1713216639279,-166.666666,0.00029962,2]
[322685235,1713216639288,-769.05677609,0.00029966,2]
[322685236,1713216639299,-1088.76018233,0.00029996,2]
[322685237,1713216639308,-154.79876161,0.00029996,2]
[322685238,1713216639317,-155.15459774,0.00029996,2]
[322685239,1713216639326,-255.10807896,0.00029996,2]
[322685240,1713216639335,-154.79876161,0.00029996,2]
[322685241,1713216639344,-2007.62821039,0.00029996,2]
[322685242,1713216639354,-1000.0,0.00029996,2]
[322685243,1713216639363,-5791.45874465,0.00029996,2]
[322685244,1713216639372,-1776.96868537,0.00029997,2]
[322685245,1713216639382,-461.52109338,0.00029998,2]
[322685246,1713216639391,-194.82359251,0.00029998,2]
[322685247,1713216639401,-170.8529116,0.00029999,2]
[322685248,1713216639410,-266.08054062,0.00029999,2]
[322685249,1713216639419,-33649.38484384,0.0003,2]
[322685250,1713216639428,-1237.0,0.0003,2]
[322685251,1713216639437,-154.79876161,0.0003,4]
[322685252,1713216639448,-154.79876161,0.0003,2]
[322685253,1713216639458,-154.79876161,0.0003,4]
[322685254,1713216639467,-100339.43421872,0.0003,30]
[322685255,1713216639476,-1014.5211511,0.0003,4]
[322685256,1713216639485,-346.66789349,0.0003,4]
[322685257,1713216639494,-19063.49969201,0.0003,4]
[322685258,1713216639503,-253.54419555,0.0003,4]
[322685259,1713216639512,-150.0,0.0003,2]
[322685260,1713216639521,-260.0,0.0003,2]
[322685261,1713216639530,-1752.27812081,0.00030036,2]
[322685262,1713216639539,-1033.52606183,0.00030036,2]
[322685263,1713216639548,-587.0,0.00030091,2]
[322685264,1713216639557,-500.0,0.00030134,2]
[322685265,1713216639566,-500.0,0.00030134,2]
[322685266,1713216639575,-634.97586485,0.00030134,2]
[322685267,1713216639584,-266.59597019,0.00030134,2]
[322685268,1713216639593,-500.0,0.00030134,2]
[322685269,1713216639602,-500.0,0.00030134,2]
[322685270,1713216639612,-500.0,0.00030134,2]
[322685271,1713216639621,-500.0,0.00030134,2]
[322685272,1713216639630,-500.0,0.00030134,2]
[322685273,1713216639639,-500.0,0.00030134,2]
[322685274,1713216639648,-500.0,0.00030134,2]
[322685275,1713216639657,-500.0,0.00030134,2]
[322685276,1713216639666,-500.0,0.00030134,2]
[322685277,1713216639675,-500.0,0.00030134,2]
[322685278,1713216639684,-407.95720898,0.00030134,2]
[322685279,1713216639693,-500.0,0.00030134,2]
[322685281,1713216639702,-494.33613576,0.00030134,2]
[322685282,1713216639711,-500.0,0.00030134,2]
[322685283,1713216639720,-500.0,0.00030134,2]
[322685284,1713216639729,-243.49608044,0.00030134,2]
[322685285,1713216639738,-319.86387603,0.00030134,2]
[322685286,1713216639747,-500.0,0.00030134,2]
[322685287,1713216639756,-500.0,0.00030134,2]
[322685288,1713216639765,-500.0,0.00030134,2]
[322685289,1713216639774,-500.0,0.00030134,2]
[322685290,1713216639782,-500.0,0.00030134,2]
[322685291,1713216639791,-500.0,0.00030134,2]
[322685292,1713216639800,-500.0,0.00030134,2]
[322685293,1713216639810,-500.0,0.00030134,2]
[322685294,1713216639819,-243.60306386,0.00030134,2]
[322685295,1713216639830,-500.0,0.00030134,2]
[322685296,1713216639839,-500.0,0.00030134,2]
[322685297,1713216639848,-500.0,0.00030134,2]
[322685298,1713216639857,-160.0,0.00030135,10]
[322685299,1713216639866,-161111.66075821,0.00030136,5]
[322685300,1713216639875,-263.43754654,0.00030136,2]
[322685301,1713216639884,-504.88526204,0.00030136,2]
[322685302,1713216639895,-381.30544139,0.00030136,2]
[322685303,1713216639905,-500.0,0.00030136,2]
[322685304,1713216639916,-154.76784823,0.00030136,2]
[322685305,1713216639927,-500.0,0.00030136,2]
[322685306,1713216639937,-642.69444676,0.00030136,2]
[322685307,1713216639948,-500.0,0.00030136,2]
[322685308,1713216639958,-500.0,0.00030136,2]
[322685309,1713216639969,-500.0,0.00030136,2]
[322685310,1713216639980,-503.22820684,0.00030136,2]
[322685311,1713216639990,-385.40257837,0.00030136,2]
[322685312,1713216640002,-500.97873739,0.00030136,2]
[322685313,1713216640012,-217.25260511,0.00030136,2]
[322685314,1713216640022,-500.0,0.00030136,2]
[322685315,1713216640032,-500.0,0.00030136,2]
[322685316,1713216640042,-507.1245584,0.00030136,2]
[322685317,1713216640052,-526.52220413,0.00030136,2]
[322685318,1713216640062,-500.0,0.00030136,2]
[322685319,1713216640075,-500.0,0.00030136,2]
[322685320,1713216640085,-500.0,0.00030136,2]
[322685321,1713216640095,-500.0,0.00030136,2]
[322685322,1713216640106,-500.0,0.00030136,2]
[322685323,1713216640115,-500.0,0.00030136,2]
[322685324,1713216640124,-500.0,0.00030136,2]
[322685325,1713216640135,-546.55355523,0.00030136,2]
[322685326,1713216640144,-500.0,0.00030136,2]
[322685327,1713216640153,-500.0,0.00030136,2]
[322685328,1713216640162,-500.0,0.00030136,2]
[322685329,1713216640171,-502.74619157,0.00030136,2]
[322685330,1713216640181,-507.94373631,0.00030136,2]
[322685331,1713216640189,-500.0,0.00030136,2]
[322685332,1713216640198,-500.0,0.00030136,2]
[322685333,1713216640208,-500.0,0.00030136,2]
[322685334,1713216640218,-512.76270628,0.00030136,2]
[322685335,1713216640228,-500.0,0.00030136,2]
[322685336,1713216640238,-500.0,0.00030136,2]
[322685337,1713216640247,-500.0,0.00030136,2]
[322685338,1713216640256,-598.84713523,0.00030136,2]
[322685339,1713216640265,-2533.21,0.00030136,2]
[322685340,1713216640274,-500.0,0.00030136,2]